[Event "87th Spanish Championship 2022"]
[Site "Linares"]
[Date "2022.08.16"]
[Round "7.22"]
[White "De La Cruz Revilla, Miguel"]
[Black "Alshameary Puente, Ismael"]
[Result "0-1"]
[ECO "B50"]
[WhiteElo "2213"]
[BlackElo "2352"]
[Annotator "TA"]
[PlyCount "78"]
[EventDate "2022.08.11"]
[EventType "swiss"]
[EventCountry "ESP"]
[SourceTitle "playchess.com"]
[Source "ChessBase"]
[SourceQuality "1"]
[TimeControl "5400+30"]

{[%evp 16,78,-3,-16,-9,-40,-5,-5,-4,-8,-5,0,0,0,-1,-4,0,0,0,0,0,0,0,0,0,0,0,0,0,0,3,0,-4,-13,8,-22,-22,-20,-11,-21,-6,-187,-172,-168,-165,-223,0,0,0,0,0,-253,-342,-308,0,0,0,-424,-408,-383,-350,-1331,-802,-785,-772]} 1. e4 {[%emt 0:00:02]} c5 {[%emt 0:07:07]} 2. Nf3 {[%emt 0:00:09]} d6 {[%emt 0:00:07]} 3. c3 {[%emt 0:00:06]} Nf6 {[%emt 0:00:13]} 4. d3 {[%emt 0:00:13]} g6 {[%emt 0:00:19]} 5. g3 {[%emt 0:00:11]} Bg7 {[%emt 0:00:10]} 6. Bg2 {[%emt 0:00:06]} O-O {[%emt 0:00:08]} 7. O-O {[%emt 0:00:06]} Nc6 {[%emt 0:01:07]} 8. Re1 {[%emt 0:01:47]} e5 {[%emt 0:04:09]} 9. Na3 {[%emt 0:01:40] 9.a4 is becoming the main line.} h6 {[%emt 0:03:36] A05: Réti Opening: 1 Nf3 Nf6.} 10. Nc2 {[%emt 0:04:21]} Re8 {[%emt 0:08:22]} 11. Ne3 {[%emt 0:11:41]} Be6 {[%emt 0:12:15] The position is equal.} 12. a3 {[%emt 0:04:38]} d5 {[%emt 0:04:56]} 13. exd5 {[%emt 0:21:02]} Nxd5 {[%emt 0:00:40]} 14. Nxd5 {[%emt 0:01:48]} Bxd5 {[%emt 0:00:10]} 15. Be3 {[%emt 0:00:19]} b6 {[%emt 0:14:09] [#]} 16. c4 $146 {[%emt 0:07:48]} ({Predecessor:} 16. Qd2 Na5 17. Rad1 Qf6 18. Qe2 Bb3 19. Rc1 Rad8 20. Nd2 Bd5 21. Ne4 Qe7 22. b4 {1-0 (54) Kaminski,M (2450)-Lagunow,A (2420) Germany 1993}) 16... Be6 {[%emt 0:02:37]} 17. Ng5 {[%emt 0:01:57][%cal Bf3g5,Bg5e4,Be4c3][%mdl 32]} Bd7 {[%emt 0:01:50]} 18. Ne4 {[%emt 0:01:46][%cal Ob2b4]} a5 {[%emt 0:08:05] Prevents b4.} 19. Nc3 {[%emt 0:11:06]} Rc8 {[%emt 0:08:33]} 20. Nd5 {[%emt 0:04:26]} Be6 {[%emt 0:01:10]} 21. Rb1 {[%emt 0:04:09]} Ne7 {[%emt 0:01:04][%cal Re7d5]} 22. Nc3 {[%emt 0:03:56]} Bf5 {[%emt 0:08:28]} 23. Nd5 {[%emt 0:01:44]} Nxd5 {[%emt 0:04:00]} 24. Bxd5 {[%emt 0:00:20]} Be6 {[%emt 0:00:05]} 25. Bxe6 {[%emt 0:04:13]} Rxe6 {[%emt 0:00:04]} 26. b4 {[%emt 0:00:12]} Rd6 {[%emt 0:02:28]} 27. bxc5 {[%emt 0:00:16]} (27. bxa5 {looks sharper.} Rxd3 28. Qf3 bxa5 29. Rb7) 27... Rxd3 {[%emt 0:00:19]} 28. cxb6 $2 {[%emt 0:11:37]} Rxd1 $19 {[%emt 0:03:18]} 29. Rexd1 {[%emt 0:00:01]} Qe7 {[%emt 0:00:12]} 30. Rd5 {[%emt 0:00:26]} (30. Rb5 $142) 30... Qxa3 $2 {[%emt 0:04:19]} (30... Qb7 $19 {aiming for ...h5.} 31. Rbd1 Bf8) 31. b7 {[%emt 0:00:37]} Rb8 {[%emt 0:00:01] White must now prevent ...Bf8.} 32. c5 {[%emt 0:03:10][%cal Bc4c5,Bc5c6][%mdl 32]} Qa4 {[%emt 0:01:18]} 33. Rd6 $2 {[%emt 0:00:31][%mdl 8192]} (33. Rb6 $11 Qa1+ 34. Kg2) 33... Bf8 {[%emt 0:00:42]} ({Don't blunder} 33... Qe4 $2 34. Rdb6 Bf6 35. c6 $19) 34. Rdb6 {[%emt 0:00:12] [#]} Qe4 {[%emt 0:00:41]} ({Better is} 34... h5 $1 $19 {[%cal Rh5h4] And now ...h4 would win.} 35. h3 h4) 35. c6 $11 {[%emt 0:00:34] Strongly threatening c7.} Bd6 {[%emt 0:00:08] Threatens to win with ...Bc7.} 36. Rd1 $2 {[%emt 0:00:22][%mdl 8192]} (36. Rc1 $11 {and White stays safe.}) 36... Bc7 $19 {[%emt 0:00:31]} 37. Ra6 {[%emt 0:00:28]} Kg7 {[%emt 0:01:06]} 38. Ba7 $2 {[%emt 0:00:52] [#]} (38. Rc1 Qb4 39. Ra8) 38... Rxb7 $1 {[%emt 0:00:17]} 39. cxb7 {[%emt 0:00:31]} Qxb7 {[%emt 0:00:01] Weighted Error Value: White=0.75/Black=0.50} 0-1

[Event "87th Spanish Championship 2022"]
[Site "Linares"]
[Date "2022.08.16"]
[Round "7.23"]
[White "Fernandez Lopez, Ruben"]
[Black "Gomez Carreno, Martin"]
[Result "1-0"]
[ECO "C78"]
[WhiteElo "2324"]
[BlackElo "2155"]
[Annotator "TA"]
[PlyCount "133"]
[EventDate "2022.08.11"]
[EventType "swiss"]
[EventCountry "ESP"]
[SourceTitle "playchess.com"]
[Source "ChessBase"]
[SourceQuality "1"]
[TimeControl "5400+30"]

{[%evp 16,133,34,18,20,20,18,33,30,23,32,28,22,18,57,60,50,64,62,39,98,70,54,59,62,54,62,63,72,74,84,65,86,53,60,34,79,73,127,101,143,141,204,204,335,330,324,322,315,315,299,296,310,188,182,198,235,209,235,235,235,235,235,235,235,97,229,220,180,126,235,235,235,235,235,235,235,235,235,235,235,235,235,235,235,227,220,102,84,85,86,79,247,76,109,109,247,247,247,247,360,360,418,418,409,366,29979,29980,29981,29982,29983,29983,29987,29986,29986,29987,29996,29997,29998,29999]} 1. e4 {[%emt 0:00:03]} e5 {[%emt 0:00:04]} 2. Nf3 {[%emt 0:00:07]} Nc6 {[%emt 0:00:05]} 3. Bb5 {[%emt 0:00:04][%cal Bf1b5,Bb5a4,Ba4b3][%mdl 32]} a6 {[%emt 0:00:05]} 4. Ba4 {[%emt 0:00:04]} Nf6 {[%emt 0:00:06]} 5. O-O {[%emt 0:00:07]} Bc5 {[%emt 0:00:04]} 6. c3 {[%emt 0:00:08]} b5 {[%emt 0:00:05][%cal Bb7b5,Bb5b4][%mdl 32]} 7. Bb3 {[%emt 0:00:04]} d6 {[%emt 0:00:08]} 8. a4 {[%emt 0:00:05]} Bg4 {[%emt 0:00:06]} 9. h3 {[%emt 0:00:06] 9.axb5 is not played anymore.} Bxf3 {[%emt 0:00:05] C78: Ruy Lopez: Archangelsk and Möller Defences.} 10. Qxf3 {[%emt 0:00:05]} Na5 {[%emt 0:00:09]} 11. Bc2 {[%emt 0:01:56]} b4 {[%emt 0:00:06] White is slightly better.} 12. d3 {[%emt 0:00:38]} Rb8 {[%emt 0:00:06]} 13. Qe2 {[%emt 0:01:07]} O-O {[%emt 0:02:07]} 14. Nd2 {[%emt 0:00:15] [#]} Qd7 $146 {[%emt 0:01:29]} ({Predecessor:} 14... Ba7 15. d4 exd4 16. Qxa6 dxc3 17. bxc3 bxc3 18. Qxa5 cxd2 19. Bxd2 Bd4 20. Rab1 Ra8 {½-½ (30) Areshchenko,A (2677)-Vishnu,P (2514) Al Ain 2015}) 15. Nf3 {[%emt 0:00:39]} bxc3 {[%emt 0:16:43]} 16. bxc3 {[%emt 0:00:05]} Ba7 {[%emt 0:05:39]} 17. d4 {[%emt 0:03:57]} exd4 {[%emt 0:01:02]} (17... Qc6 $14) 18. cxd4 {[%emt 0:00:07]} Nc6 $1 {[%emt 0:00:21]} 19. Be3 {[%emt 0:00:24]} Nb4 {[%emt 0:01:33]} 20. Bb1 {[%emt 0:14:26]} d5 {[%emt 0:23:25]} 21. e5 $36 {[%emt 0:01:48][%mdl 2048] White has good play.} Ne4 {[%emt 0:00:29]} 22. Rc1 {[%emt 0:08:44]} f5 {[%emt 0:15:53]} 23. exf6 $1 {[%emt 0:01:26]} Nxf6 {[%emt 0:00:02]} 24. Ne5 {[%emt 0:01:22]} Qd6 {[%emt 0:01:53][%cal Oc7c5]} 25. Nd3 {[%emt 0:13:30]} Nc6 {[%emt 0:07:00]} 26. Nc5 {[%emt 0:00:50]} Bxc5 {[%emt 0:02:21]} ({Better is} 26... a5) 27. Rxc5 {[%emt 0:00:35]} Rfe8 {[%emt 0:00:30] Threatens to win with ...Nxd4.} 28. Qd2 {[%emt 0:05:03]} Ne4 {[%emt 0:14:30]} (28... Rxb1+ $16 29. Rxb1 Ne4) 29. Bxe4 $18 {[%emt 0:00:05]} dxe4 {[%emt 0:00:01]} (29... Rxe4 {was called for.} 30. Rac1 Ne7) 30. Rac1 {[%emt 0:02:12]} Nb4 {[%emt 0:00:10]} 31. Bf4 {[%emt 0:00:34]} (31. Rxc7 Nd5 $18) 31... Qf8 {[%emt 0:02:45]} 32. Bxc7 {[%emt 0:00:51]} Nd3 {[%emt 0:02:20]} 33. Bxb8 {[%emt 0:00:06]} Rxb8 {[%emt 0:00:05]} 34. Rc6 {[%emt 0:02:33]} (34. Qa2+ Kh8 35. R1c4 e3 $18) 34... Nxc1 {[%emt 0:01:13]} 35. Qxc1 {[%emt 0:00:06][%mdl 4096] Endgame aiming for a5. KQR-KQR} a5 {[%emt 0:00:16]} 36. Qc2 {[%emt 0:00:29]} Qb4 {[%emt 0:03:05]} 37. Rc8+ {[%emt 0:04:23]} (37. Qxe4 $6 Qb1+ 38. Qxb1 Rxb1+ 39. Kh2 Rb4 $16) 37... Rxc8 {[%emt 0:00:07]} 38. Qxc8+ {[%emt 0:00:03] KQ-KQ} Kf7 {[%emt 0:00:07]} 39. Qf5+ {[%emt 0:00:03]} Kg8 {[%emt 0:00:32]} 40. Qb5 {[%emt 0:01:19]} (40. Qxe4 $6 Qxa4 41. Qe6+ Kf8 $16) (40. d5 $18 {is more deadly.} Qb1+ 41. Kh2 Qb8+ 42. g3) 40... Kf7 {[%emt 0:00:17]} (40... Kf8 $16 41. Qf5+ Kg8 42. Qe6+ (42. Qxe4 Qxa4 43. Qd5+ Kf8 $16) 42... Kf8 43. Qf5+ (43. Qxe4 Qxa4 44. Qf5+ Ke7 $16) 43... Kg8) 41. Qd7+ {[%emt 0:00:50]} Kf8 {[%emt 0:00:30]} 42. g3 {[%emt 0:01:10]} (42. Kh2 $18) 42... e3 {[%emt 0:01:26]} (42... g6 $16) 43. Qf5+ {[%emt 0:01:22]} (43. fxe3 Qe1+ 44. Kh2 Qf2+ 45. Kh1 Qe1+ 46. Kh2 Qf2+ 47. Kh1 Qe1+ 48. Kh2 $11) 43... Kg8 {[%emt 0:00:29]} 44. Qd5+ {[%emt 0:01:06]} (44. fxe3 $6 Qxa4 45. Qe6+ Kf8 $16) 44... Kf8 {[%emt 0:00:08] [#] White must now prevent ...Qe1+.} 45. Qf3+ $1 {[%emt 0:00:07]} (45. fxe3 Qe1+ 46. Kh2 Qf2+ 47. Qg2 Qxe3 $14) 45... Kg8 {[%emt 0:00:06]} 46. Qxe3 {[%emt 0:00:24]} ({Don't play} 46. fxe3 $6 Qb1+ 47. Qf1 Qb3 $16) 46... Qxa4 {[%emt 0:00:11]} 47. Qe6+ {[%emt 0:00:04]} Kf8 {[%emt 0:00:28] [#]} 48. d5 $1 {[%emt 0:00:03] Hoping for d6.} Qe8 {[%emt 0:02:06]} 49. Qf5+ {[%emt 0:00:31]} Ke7 {[%emt 0:00:45]} 50. Qe4+ {[%emt 0:02:14]} ({Resist} 50. Qxh7 Kd6 51. Qxg7 Qe1+ 52. Kg2 Qe4+ 53. Kh2 a4 54. Qf8+ Kxd5) 50... Kd8 {[%emt 0:00:22]} 51. Qf4 {[%emt 0:00:45]} (51. Qxh7 $18 {has better winning chances. Strongly threatening Qh4+.} Qe5 52. Qh4+ Qf6 53. Qe4) 51... Qe1+ $16 {[%emt 0:00:16]} 52. Kg2 {[%emt 0:00:05]} Qb4 {[%emt 0:00:04] Inhibits Qd6+. And now ...Qxf4 would win.} 53. Qg5+ {[%emt 0:00:31]} Kd7 $2 {[%emt 0:00:50]} (53... Qe7 $16 54. Qf4 Qb4) 54. Qe5 $2 {[%emt 0:01:50]} (54. Qxg7+ $18 {is the precise move to win.} Qe7 55. Qd4) 54... Qe7 {[%emt 0:00:47]} 55. Qd4 {[%emt 0:01:25] White is more active.} Qb4 {[%emt 0:00:06] Inhibits Qa4+.} (55... Kc8 $16 56. d6 Qd7) 56. Qxg7+ $18 {[%emt 0:00:33]} Kd6 {[%emt 0:00:07]} 57. Qxh7 {[%emt 0:00:18]} Kxd5 {[%emt 0:00:08]} (57... Qd4 {might work better.} 58. Qg6+ Kxd5 59. Qf5+ Qe5 60. Qd7+ (60. Qxe5+ $2 Kxe5 61. Kh2 a4 $19) 60... Kc4 61. Qa4+ Kd3 62. Qa3+ Kd2 63. Qa2+ Kd3 64. Qa3+ Kd2 65. Qa2+ Kd3) 58. Qf5+ {[%emt 0:00:14]} Kc4 {[%emt 0:01:18]} 59. h4 {[%emt 0:00:07][%cal Bh3h4,Bh4h5,Bh5h6,Bh6h7][%mdl 32]} a4 {[%emt 0:00:30]} 60. h5 {[%emt 0:00:02] Qe4+ would kill now.} Qd2 $2 {[%emt 0:01:04]} (60... Qd6 $18 61. Qc2+ Kb4 62. Qb2+ Ka5 63. Qc3+ Kb5) 61. Qe6+ {[%emt 0:00:39] White mates.} Kb4 {[%emt 0:01:21]} 62. h6 {[%emt 0:00:06]} a3 {[%emt 0:00:42]} 63. h7 {[%emt 0:00:04]} Qc3 {[%emt 0:00:19]} 64. Qe4+ {[%emt 0:00:25]} Kb3 {[%emt 0:00:13]} 65. Qf3 {[%emt 0:00:04]} Qd3 {[%emt 0:00:45]} 66. Qxd3+ {[%emt 0:00:07]} Ka2 {[%emt 0:00:05]} 67. Qc2+ {[%emt 0:00:02] Weighted Error Value: White=0.17 (very precise) /Black=0.40} 1-0

[Event "87th Spanish Championship 2022"]
[Site "Linares"]
[Date "2022.08.16"]
[Round "7.24"]
[White "Garza Marco, Sergio"]
[Black "Serrano Almendros, Alejandro"]
[Result "1-0"]
[ECO "C02"]
[WhiteElo "2408"]
[BlackElo "2177"]
[Annotator "TA"]
[PlyCount "99"]
[EventDate "2022.08.11"]
[EventType "swiss"]
[EventCountry "ESP"]
[SourceTitle "playchess.com"]
[Source "ChessBase"]
[SourceQuality "1"]
[TimeControl "5400+30"]

{[%evp 13,99,46,54,35,83,75,106,69,82,72,70,70,69,67,62,64,75,72,75,54,70,56,73,39,45,38,90,81,91,88,77,87,106,108,139,147,149,153,144,148,157,154,159,156,149,141,140,149,165,163,164,149,143,151,154,147,211,208,233,195,233,227,363,379,374,355,379,368,419,418,427,427,835,833,777,752,1033,1031,988,999,1103,1204,1713,1138,1802,1260,2252,1074]} 1. e4 {[%emt 0:00:01]} e6 {[%emt 0:00:16]} 2. d4 {[%emt 0:00:06]} d5 {[%emt 0:00:06]} 3. e5 {[%emt 0:00:06]} c5 {[%emt 0:00:09]} 4. c3 {[%emt 0:00:05]} Nc6 {[%emt 0:01:26]} 5. Nf3 {[%emt 0:00:06]} cxd4 {[%emt 0:00:58]} 6. cxd4 {[%emt 0:00:24]} Qb6 {[%emt 0:00:50]} 7. Nc3 $1 {[%emt 0:01:10] 7.Nc3 scores better than 7.a3.} Bd7 {[%emt 0:01:16]} 8. Be2 {[%emt 0:01:12] C02: French: Advance Variation.} Nh6 {[%emt 0:01:49]} (8... Nge7 $14 {feels stronger.}) 9. Bxh6 $16 {[%emt 0:00:26]} gxh6 {[%emt 0:00:25]} 10. Qd2 {[%emt 0:00:42] White is better.} Bg7 {[%emt 0:01:29]} 11. O-O {[%emt 0:00:31]} O-O {[%emt 0:00:49]} 12. Na4 $1 {[%emt 0:12:02]} Qa5 {[%emt 0:11:01]} 13. Qxa5 {[%emt 0:00:27]} Nxa5 {[%emt 0:00:01]} 14. Nc5 {[%emt 0:00:08] [#]} Bc8 $146 {[%emt 0:00:24]} ({Predecessor:} 14... Bc6 15. Rfc1 Rfc8 16. Rc3 b6 17. Nb3 Nxb3 18. axb3 a5 19. Rac1 Bd7 20. Rxc8+ Rxc8 21. Rxc8+ Bxc8 {½-½ (32) Maurizzi,M (2489)-Dgebuadze,A (2490) Chartres 2021}) 15. Rac1 {[%emt 0:04:44]} b6 {[%emt 0:04:38]} 16. Nb3 {[%emt 0:01:48]} Nc4 {[%emt 0:04:23]} 17. Rc2 {[%emt 0:13:28]} (17. Bxc4 dxc4 18. Nbd2 (18. Rxc4 Ba6 $17) 18... b5 $11) 17... Ba6 {[%emt 0:12:17]} 18. Na1 {[%emt 0:09:40] Hoping for b3.} Bb7 {[%emt 0:13:55]} 19. Rfc1 {[%emt 0:00:36]} b5 {[%emt 0:06:03]} (19... a5 $14) 20. Nb3 {[%emt 0:01:00] White stays focused until the end.} Rfc8 {[%emt 0:06:20]} 21. Nc5 {[%emt 0:01:55]} Bc6 {[%emt 0:00:01]} 22. Nd3 {[%emt 0:01:24]} Bd7 {[%emt 0:01:26]} 23. b3 {[%emt 0:02:05]} Nb6 {[%emt 0:00:17]} 24. Nc5 {[%emt 0:00:26][%cal Bd3c5,Bc5a6,Ba6c7][%mdl 32]} Be8 {[%emt 0:06:37]} 25. Na6 {[%emt 0:00:48] White is much more active.} Rxc2 {[%emt 0:03:44]} 26. Rxc2 {[%emt 0:00:12]} Bd7 {[%emt 0:00:11]} 27. Ne1 {[%emt 0:01:42] Pair of Knights!} Rc8 {[%emt 0:01:45]} 28. Rxc8+ {[%emt 0:03:42]} Nxc8 {[%emt 0:00:06]} 29. Nc7 {[%emt 0:00:06]} b4 {[%emt 0:00:42]} 30. Na6 {[%emt 0:00:02]} Bf8 {[%emt 0:00:15]} 31. Nc2 {[%emt 0:00:01]} Ne7 {[%emt 0:01:38]} 32. Naxb4 {[%emt 0:04:04]} ({Don't play} 32. Nc5 $6 Bc8 $14) 32... a5 {[%emt 0:04:33]} 33. Na6 {[%emt 0:01:27]} Nc6 {[%emt 0:00:57]} 34. a3 {[%emt 0:01:52]} Na7 (34... f6 $16 {was called for.}) 35. Nc5 {[%emt 0:07:49]} Be8 {[%emt 0:09:22]} 36. Nb7 {[%emt 0:09:41]} a4 {[%emt 0:02:18]} 37. b4 {[%emt 0:00:02]} Nb5 {[%emt 0:01:26]} (37... f6 {is a better defense.} 38. Nd8 (38. exf6 Bg6 $16) 38... Bg6) 38. Bxb5 $18 {[%emt 0:01:14]} Bxb5 {[%emt 0:00:01][%mdl 4096] Endgame KBB-KNN} 39. Nc5 {[%emt 0:00:08]} h5 {[%emt 0:01:39]} 40. f4 {[%emt 0:00:20]} h4 {[%emt 0:02:42]} 41. Ne3 {[%emt 0:00:41]} Bh6 {[%emt 0:00:37]} 42. g3 {[%emt 0:00:02][%cal Bg2g3,Bg3g4][%mdl 32] White is clearly winning.} f6 {[%emt 0:01:12]} (42... Kf8 $142 43. Nd1 (43. gxh4 Bxf4 44. Kf2 Ke7 $14) 43... hxg3) 43. Ng4 {[%emt 0:00:52]} Bf8 {[%emt 0:00:44]} 44. Nxf6+ {[%emt 0:00:08]} Kf7 {[%emt 0:00:06]} 45. Nxh7 {[%emt 0:03:02]} Be7 {[%emt 0:00:04]} 46. g4 {[%emt 0:00:52]} Kg6 {[%emt 0:00:22]} 47. Nf6 {[%emt 0:00:07]} h3 {[%emt 0:00:18]} 48. Kf2 {[%emt 0:00:28]} Bf8 {[%emt 0:00:43]} 49. Kg3 {[%emt 0:00:33]} Bf1 {[%emt 0:00:15]} 50. Nxa4 {[%emt 0:00:11] Weighted Error Value: White=0.06 (flawless) /Black=0.21 (precise)} 1-0

[Event "87th Spanish Championship 2022"]
[Site "Linares"]
[Date "2022.08.16"]
[Round "7.25"]
[White "Fernandez Garcia, Gumersindo"]
[Black "Suarez Uriel, Adrian"]
[Result "1/2-1/2"]
[ECO "E73"]
[WhiteElo "2160"]
[BlackElo "2386"]
[Annotator "TA"]
[PlyCount "97"]
[EventDate "2022.08.11"]
[EventType "swiss"]
[EventCountry "ESP"]
[SourceTitle "playchess.com"]
[Source "ChessBase"]
[SourceQuality "1"]
[TimeControl "5400+30"]

{[%evp 10,97,50,43,60,0,2,-59,-63,-75,-78,-131,-96,-89,-54,-80,-77,-108,-103,-127,-124,-170,-158,-171,-153,-154,-141,-193,-165,-192,-178,-184,-73,-73,-74,-80,-79,-80,0,0,0,0,55,50,127,129,120,122,95,160,124,8,52,51,46,50,52,55,164,164,134,0,0,0,0,0,0,0,0,0,0,0,0,0,0,0,7,0,0,0,0,0,0,0,0,0,0,0,0,0]} 1. d4 {[%emt 0:00:00]} Nf6 {[%emt 0:04:20]} 2. c4 {[%emt 0:00:02]} g6 {[%emt 0:00:05]} 3. Nc3 {[%emt 0:00:03]} Bg7 {[%emt 0:00:04]} 4. e4 {[%emt 0:00:04]} d6 {[%emt 0:00:05]} 5. Be2 {[%emt 0:00:22]} O-O {[%emt 0:00:07]} 6. Be3 {[%emt 0:00:03]} Na6 {[%emt 0:00:03] E73: King's Indian: Averbakh Variation without 6...c5.} 7. g4 {[%emt 0:00:12]} (7. Nf3 $14) 7... c5 $1 $11 {[%emt 0:00:13][%cal Of6g4] Hoping for ...Nxg4!} 8. g5 {[%emt 0:01:58] [#]} ({White should try} 8. d5 $11) 8... Ng4 $1 $15 {[%emt 0:00:40] Black is slightly better.} 9. Bxg4 {[%emt 0:04:55]} Bxg4 {[%emt 0:00:10]} 10. f3 {[%emt 0:02:45]} ({White should play} 10. Qxg4 cxd4 11. Bxd4 Bxd4 12. Nge2) 10... cxd4 {[%emt 0:00:48]} 11. Bxd4 {[%emt 0:00:30]} Bxd4 {[%emt 0:02:16]} 12. Qxd4 {[%emt 0:00:11]} Bh5 {[%emt 0:00:03]} 13. Nd5 {[%emt 0:09:04] Inhibits Nb4.} Nc7 {[%emt 0:02:57]} 14. Rc1 {[%emt 0:08:35] [#]} e5 $146 {[%emt 0:02:07]} ({Predecessor:} 14... Nxd5 15. Qxd5 Qb6 16. Qd2 Rac8 17. Kf1 Qa6 18. b3 b5 19. cxb5 Rxc1+ 20. Qxc1 Qxa2 {0-1 (30) Heidarsson,A (1965)-Jonsson,G (2046) Reykjavik 2020}) 15. Qd2 {[%emt 0:02:57]} (15. Qe3 $17) 15... Nxd5 $19 {[%emt 0:00:20]} 16. cxd5 {[%emt 0:01:10]} f5 {[%emt 0:00:14]} 17. gxf6 {[%emt 0:02:55]} Qxf6 {[%emt 0:00:21]} 18. Rc3 {[%emt 0:00:46]} (18. Qe3 $17 {is a better defense.}) 18... Rac8 {[%emt 0:00:41]} 19. h4 {[%emt 0:24:30]} Rxc3 {[%emt 0:02:15]} 20. Qxc3 {[%emt 0:00:10]} Qf4 {[%emt 0:00:13]} (20... Bxf3 $19 21. Qxf3 Qxf3 22. Nxf3 Rxf3) 21. Rh3 $17 {[%emt 0:10:38][%cal Bh1h3,Bh3h2,Bh2c2,Bc2c8,Bc8f8][%mdl 32]} Qf7 {[%emt 0:05:42]} 22. Kf2 {[%emt 0:03:22]} Qd7 {[%emt 0:01:02]} 23. Kg3 {[%emt 0:05:35]} Qb5 {[%emt 0:02:20]} (23... a6 $17) 24. Rh2 $1 $11 {[%emt 0:03:42]} Qb6 {[%emt 0:04:26]} 25. Qc1 {[%emt 0:03:49]} Qa6 {[%emt 0:16:58]} (25... Rf7 $11) 26. Rc2 $1 $14 {[%emt 0:04:11]} Qb5 {[%emt 0:16:48]} (26... Qb6 $14) 27. Rc8 $16 {[%emt 0:04:26]} Qd7 {[%emt 0:04:33] [#]} 28. Rxf8+ {[%emt 0:03:24]} Kxf8 {[%emt 0:00:01][%mdl 4096] Endgame KQB-KQN} 29. Qe3 {[%emt 0:00:35]} Qa4 {[%emt 0:02:13] [#]} 30. Qg5 {[%emt 0:00:58]} (30. Nh3 $1 $16) 30... Qd7 {[%emt 0:02:12]} (30... Qd1 $5 {[%cal Rd1g1]} 31. Qf6+ Kg8 $11) 31. Qf6+ {[%emt 0:00:34]} Kg8 {[%emt 0:00:00][%cal Bf8g8,Bg8f7,Bf7e7,Be7d7,Bd7c7,Bc7b6,Bb6a5][%mdl 32]} 32. Nh3 {[%emt 0:00:37]} h6 {[%emt 0:00:03] Against Ng5} 33. Nf2 {[%emt 0:01:14]} Qf7 {[%emt 0:00:07]} (33... a5 $14) 34. Qxf7+ $18 {[%emt 0:00:31]} Kxf7 {[%emt 0:00:01]} 35. Ng4 {[%emt 0:00:26]} ({Better is} 35. Nd1 $16) 35... Bxg4 $11 {[%emt 0:01:04] The position is equal.} 36. fxg4 {[%emt 0:00:01] KP-KP} Ke7 {[%emt 0:00:09]} 37. Kf3 {[%emt 0:00:06]} Kd7 {[%emt 0:00:04]} 38. Ke3 {[%emt 0:00:09]} Kc7 {[%emt 0:00:11]} 39. Kd3 {[%emt 0:01:05]} Kb6 {[%emt 0:00:01]} 40. Kc4 {[%emt 0:01:11]} Ka5 {[%emt 0:00:09] White must now prevent ...Ka4.} 41. b3 {[%emt 0:02:24]} Kb6 {[%emt 0:00:57]} 42. b4 {[%emt 0:00:33]} a5 {[%emt 0:00:06]} 43. a3 {[%emt 0:00:36]} axb4 {[%emt 0:00:23]} 44. Kxb4 {[%emt 0:00:34]} ({But not} 44. axb4 g5 45. h5 Ka6 $17) 44... Ka6 {[%emt 0:00:05]} 45. a4 {[%emt 0:00:24]} b6 {[%emt 0:00:25]} 46. Kb3 {[%emt 0:00:13]} Ka5 {[%emt 0:00:20]} 47. Ka3 $1 {[%emt 0:00:07]} b5 {[%emt 0:00:09]} (47... g5 $5 48. h5 b5 49. axb5 Kxb5 $11) 48. axb5 {[%emt 0:00:01]} Kxb5 {[%emt 0:00:04] aiming for ...Kc4.} 49. Kb3 {[%emt 0:00:02] White used his chance.  Weighted Error Value: White=0.19 (very precise) /Black=0.16 (very precise)} 1/2-1/2